[Event "XXI Torredembarra Open 2019"]
[Site "Torredembarra"]
[Date "2019.07.11"]
[Round "6.9"]
[White "Usov, Aleksandr E."]
[Black "Saldana Caballe, Enric"]
[Result "1/2-1/2"]
[ECO "B22"]
[WhiteElo "1809"]
[BlackElo "2060"]
[Annotator "NA"]
[PlyCount "105"]
[EventDate "2019.07.06"]
[EventType "swiss"]
[EventCountry "ESP"]
[SourceTitle "playchess.com"]
[Source "ChessBase"]
[SourceQuality "1"]
[TimeControl "5400+30"]

1. e4 {[%emt 0:00:00]} c5 {[%emt 0:00:00]} 2. c3 {[%emt 0:00:07]} g6 {[%emt 0:00:09]} 3. d4 {[%emt 0:00:00]} cxd4 {[%emt 0:00:00]} 4. cxd4 {[%emt 0:00:00]} d5 {[%emt 0:00:00]} 5. e5 {[%emt 0:00:00]} a6 {[%emt 0:00:06]} 6. Nf3 {[%emt 0:00:00]} Nc6 {[%emt 0:00:13]} 7. Nc3 {[%emt 0:01:20]} Bg7 {[%emt 0:01:41]} 8. Bd3 {[%emt 0:01:02]} Bg4 {[%emt 0:00:47]} 9. Be3 {[%emt 0:02:56]} b5 {[%emt 0:01:58]} 10. O-O {[%emt 0:00:00]} f6 {[%emt 0:14:41]} 11. exf6 {[%emt 0:00:57]} Nxf6 {[%emt 0:00:00]} 12. h3 Bxf3 {[%emt 0:00:00]} 13. Qxf3 O-O {[%emt 0:02:01]} 14. Qe2 {[%emt 0:02:25]} Qb6 {[%emt 0:02:16]} 15. f4 {[%emt 0:02:32]} e6 {[%emt 0:02:02]} 16. Rad1 {[%emt 0:02:08]} Nh5 {[%emt 0:01:04]} 17. Kh2 {[%emt 0:03:01]} Bxd4 {[%emt 0:00:22]} 18. Bxd4 {[%emt 0:03:49]} Nxd4 {[%emt 0:00:57]} 19. Qe3 {[%emt 0:02:44]} Rab8 {[%emt 0:09:34]} 20. Bxg6 {[%emt 0:00:21]} Nf3+ {[%emt 0:02:20]} 21. Qxf3 {[%emt 0:17:02]} hxg6 {[%emt 0:05:54]} 22. Qg4 {[%emt 0:04:53]} Rf6 {[%emt 0:03:39]} 23. Qg5 {[%emt 0:03:37]} Rbf8 {[%emt 0:19:12]} 24. g3 {[%emt 0:07:16]} b4 {[%emt 0:01:54]} 25. Ne2 {[%emt 0:01:58]} Qe3 {[%emt 0:01:05]} 26. Qg4 {[%emt 0:11:08]} Rc8 {[%emt 0:00:00]} 27. Rxd5 Rc2 {[%emt 0:00:00]} 28. Re5 Rxe2+ {[%emt 0:00:56]} 29. Qxe2 {[%emt 0:00:18]} Qxg3+ {[%emt 0:00:00]} 30. Kh1 {[%emt 0:05:14]} Qxh3+ {[%emt 0:00:18]} 31. Kg1 {[%emt 0:00:47]} Ng3 {[%emt 0:01:29]} 32. Qg2 {[%emt 0:00:29]} Qxg2+ {[%emt 0:00:11]} 33. Kxg2 {[%emt 0:00:04]} Nxf1 {[%emt 0:00:03]} 34. Kxf1 {[%emt 0:01:05]} Rxf4+ {[%emt 0:00:21]} 35. Ke2 {[%emt 0:00:24]} Kf7 {[%emt 0:00:00]} 36. Ra5 {[%emt 0:02:37]} Rc4 {[%emt 0:00:56]} 37. Kd3 {[%emt 0:00:00]} Rc6 {[%emt 0:00:00]} 38. Ra4 Rb6 {[%emt 0:02:35]} 39. Kc4 {[%emt 0:00:50]} g5 {[%emt 0:00:07]} 40. Kc5 {[%emt 0:00:16]} Rb5+ {[%emt 0:00:00]} 41. Kc4 Rf5 {[%emt 0:00:00]} 42. Rxa6 Rf4+ {[%emt 0:00:19]} 43. Kd3 {[%emt 0:00:32]} Kf6 {[%emt 0:00:33]} 44. a4 {[%emt 0:00:31]} bxa3 {[%emt 0:00:00]} 45. bxa3 {[%emt 0:01:01]} g4 {[%emt 0:00:38]} 46. Ke3 {[%emt 0:02:01]} Rf5 {[%emt 0:02:26]} 47. Ra4 {[%emt 0:00:54]} Kg5 {[%emt 0:00:32]} 48. Ra8 {[%emt 0:02:10]} Kh4 {[%emt 0:00:00]} 49. a4 Kg3 {[%emt 0:00:23]} 50. a5 Re5+ {[%emt 0:07:37]} 51. Kd4 Re1 {[%emt 0:00:45]} 52. a6 e5+ {[%emt 0:01:09]} 53. Kd5 {[%emt 0:02:34]} 1/2-1/2

[Event "XXI Torredembarra Open 2019"]
[Site "Torredembarra"]
[Date "2019.07.12"]
[Round "7.1"]
[White "Pogorelov, Ruslan"]
[Black "Farran Martos, Francesc X."]
[Result "0-1"]
[ECO "A30"]
[WhiteElo "2347"]
[BlackElo "2432"]
[Annotator "NA"]
[PlyCount "102"]
[EventDate "2019.07.06"]
[EventType "swiss"]
[EventCountry "ESP"]
[SourceTitle "playchess.com"]
[Source "ChessBase"]
[SourceQuality "1"]
[TimeControl "5400+30"]

1. Nf3 {[%emt 0:00:43]} c5 {[%emt 0:00:06]} 2. c4 {[%emt 0:00:35]} Nc6 {[%emt 0:00:08]} 3. d4 {[%emt 0:00:59]} cxd4 {[%emt 0:01:27]} 4. Nxd4 {[%emt 0:01:38]} e6 {[%emt 0:04:32]} 5. Nb5 {[%emt 0:07:38]} Nf6 {[%emt 0:16:10]} 6. Nd6+ {[%emt 0:02:35]} Bxd6 {[%emt 0:00:00]} 7. Qxd6 Ne4 {[%emt 0:13:48]} 8. Qd3 {[%emt 0:15:19]} d5 {[%emt 0:00:00]} 9. cxd5 exd5 {[%emt 0:00:00]} 10. Nc3 {[%emt 0:09:29]} O-O {[%emt 0:03:58]} 11. Qxd5 Nd4 {[%emt 0:10:19]} 12. Qxe4 {[%emt 0:03:40]} Bf5 {[%emt 0:00:00]} 13. Bg5 Bxe4 {[%emt 0:06:49]} 14. Bxd8 {[%emt 0:01:37]} Nc2+ {[%emt 0:00:40]} 15. Kd2 {[%emt 0:00:26]} Rfxd8+ {[%emt 0:00:00]} 16. Kc1 {[%emt 0:00:56]} Rac8 {[%emt 0:16:18]} 17. Rb1 Nb4 {[%emt 0:00:39]} 18. Ra1 {[%emt 0:24:30]} Nd5 {[%emt 0:03:29]} 19. e3 {[%emt 0:03:16]} Nxc3 {[%emt 0:00:30]} 20. bxc3 {[%emt 0:00:51]} Rxc3+ {[%emt 0:00:16]} 21. Kb2 Rc2+ {[%emt 0:00:57]} 22. Kb3 Rdd2 {[%emt 0:09:23]} 23. Bc4 {[%emt 0:06:02]} Rxf2 {[%emt 0:00:00]} 24. Rhd1 g6 {[%emt 0:08:21]} 25. Rd7 {[%emt 0:06:54]} Rf6 {[%emt 0:03:49]} 26. Rd4 {[%emt 0:08:37]} Rb6+ {[%emt 0:00:00]} 27. Ka3 Bxg2 {[%emt 0:00:00]} 28. Re1 Bh3 {[%emt 0:00:00]} 29. Bb3 {[%emt 0:01:33]} Rxh2 {[%emt 0:00:34]} 30. Rh4 {[%emt 0:00:20]} g5 {[%emt 0:00:00]} 31. Rg1 Rg6 {[%emt 0:00:00]} 32. Rh5 Rg2 {[%emt 0:00:00]} 33. Rh1 Bf5 {[%emt 0:00:00]} 34. e4 Bxe4 {[%emt 0:00:42]} 35. Rf1 {[%emt 0:00:18]} Ra6+ {[%emt 0:00:35]} 36. Kb4 {[%emt 0:00:18]} Bg6 {[%emt 0:00:18]} 37. Rh3 Rd6 {[%emt 0:01:53]} 38. Rhf3 {[%emt 0:00:17]} Rd7 {[%emt 0:00:00]} 39. a4 h5 {[%emt 0:00:00]} 40. Bc4 h4 {[%emt 0:01:02]} 41. Bb5 {[%emt 0:00:31]} Re7 {[%emt 0:00:00]} 42. Kc5 {[%emt 0:10:43]} g4 43. Rf6 {[%emt 0:00:51]} Kg7 44. Kd6 {[%emt 0:00:30]} Re6+ {[%emt 0:01:02]} 45. Rxe6 {[%emt 0:00:30]} fxe6 {[%emt 0:00:30]} 46. Kxe6 {[%emt 0:00:30]} h3 {[%emt 0:00:30]} 47. a5 {[%emt 0:00:30]} g3 {[%emt 0:00:30]} 48. a6 {[%emt 0:00:30]} bxa6 {[%emt 0:00:30]} 49. Bc6 {[%emt 0:00:30]} Rf2 {[%emt 0:00:30]} 50. Bb5 {[%emt 0:00:00]} Rg2 {[%emt 0:02:38]} 51. Bc6 {[%emt 0:00:17]} Rf2 {[%emt 0:00:50]} 0-1

[Event "XXI Torredembarra Open 2019"]
[Site "Torredembarra"]
[Date "2019.07.12"]
[Round "7.2"]
[White "Lacasa Diaz, Jose Antonio"]
[Black "Dardha, Daniel"]
[Result "1/2-1/2"]
[ECO "B32"]
[WhiteElo "2391"]
[BlackElo "2420"]
[Annotator "NA"]
[PlyCount "110"]
[EventDate "2019.07.06"]
[EventType "swiss"]
[EventCountry "ESP"]
[SourceTitle "playchess.com"]
[Source "ChessBase"]
[SourceQuality "1"]
[TimeControl "5400+30"]

1. e4 {[%emt 0:00:00]} c5 {[%emt 0:00:00]} 2. Nf3 {[%emt 0:00:00]} Nc6 {[%emt 0:00:00]} 3. d4 {[%emt 0:00:11]} cxd4 {[%emt 0:00:00]} 4. Nxd4 {[%emt 0:00:00]} e5 {[%emt 0:00:00]} 5. Nb5 {[%emt 0:00:17]} d6 {[%emt 0:00:04]} 6. Bc4 {[%emt 0:01:32]} a6 {[%emt 0:05:42]} 7. N5c3 {[%emt 0:01:19]} Nf6 {[%emt 0:01:01]} 8. Bg5 {[%emt 0:03:48]} Be7 {[%emt 0:00:05]} 9. Bxf6 {[%emt 0:00:50]} Bxf6 {[%emt 0:00:06]} 10. O-O {[%emt 0:00:14]} O-O {[%emt 0:00:10]} 11. Nd5 {[%emt 0:01:17]} b5 {[%emt 0:02:03]} 12. Bb3 {[%emt 0:06:32]} Bg5 {[%emt 0:01:21]} 13. Nbc3 {[%emt 0:05:41]} Be6 {[%emt 0:08:49]} 14. Qd3 {[%emt 0:02:45]} Rc8 {[%emt 0:05:18]} 15. a4 {[%emt 0:06:49]} b4 {[%emt 0:01:34]} 16. Ne2 {[%emt 0:00:32]} a5 {[%emt 0:00:14]} 17. Rad1 {[%emt 0:00:41]} Nb8 {[%emt 0:11:46]} 18. f4 {[%emt 0:15:49]} exf4 {[%emt 0:07:40]} 19. Ndxf4 {[%emt 0:02:03]} Bxb3 {[%emt 0:05:17]} 20. cxb3 {[%emt 0:00:11]} Re8 {[%emt 0:06:38]} 21. Ng3 {[%emt 0:01:54]} Nc6 {[%emt 0:12:01]} 22. Kh1 {[%emt 0:05:27]} Ne5 {[%emt 0:00:31]} 23. Qxd6 {[%emt 0:01:33]} Qxd6 {[%emt 0:00:22]} 24. Rxd6 {[%emt 0:00:07]} Rc2 {[%emt 0:01:10]} 25. Rd5 {[%emt 0:01:06]} Bxf4 {[%emt 0:06:00]} 26. Rxf4 {[%emt 0:00:13]} Rxb2 {[%emt 0:01:17]} 27. Rxa5 {[%emt 0:05:15]} Rxb3 {[%emt 0:01:52]} 28. Rb5 {[%emt 0:00:21]} g6 {[%emt 0:01:49]} 29. Rf1 {[%emt 0:00:28]} h5 {[%emt 0:00:36]} 30. Ne2 {[%emt 0:02:33]} Nd3 {[%emt 0:07:25]} 31. Nd4 {[%emt 0:05:10]} Ra3 {[%emt 0:00:29]} 32. h3 {[%emt 0:04:43]} Rxe4 {[%emt 0:00:53]} 33. Nc6 {[%emt 0:00:39]} Rc3 {[%emt 0:07:23]} 34. Rb7 {[%emt 0:07:07]} Rxc6 {[%emt 0:03:58]} 35. Rfxf7 {[%emt 0:00:12]} Nc5 {[%emt 0:02:06]} 36. Rg7+ {[%emt 0:00:30]} Kf8 {[%emt 0:00:08]} 37. Rbf7+ {[%emt 0:00:23]} Ke8 {[%emt 0:00:01]} 38. Ra7 {[%emt 0:00:18]} Ne6 {[%emt 0:01:41]} 39. Rg8+ {[%emt 0:01:32]} Nf8 {[%emt 0:00:01]} 40. Ra8+ {[%emt 0:00:07]} Kd7 {[%emt 0:00:05]} 41. Raxf8 {[%emt 0:00:15]} Kc7 {[%emt 0:01:29]} 42. a5 {[%emt 0:05:51]} b3 {[%emt 0:00:50]} 43. Rc8+ {[%emt 0:02:19]} Kb7 {[%emt 0:00:22]} 44. Rb8+ {[%emt 0:01:22]} Ka7 {[%emt 0:00:10]} 45. Rxb3 {[%emt 0:01:01]} h4 {[%emt 0:00:27]} 46. Rg7+ {[%emt 0:00:41]} Ka6 {[%emt 0:00:28]} 47. Rb6+ {[%emt 0:00:23]} Rxb6 {[%emt 0:00:04]} 48. axb6 {[%emt 0:00:05]} Kxb6 {[%emt 0:00:02]} 49. Rxg6+ {[%emt 0:00:09]} Kc5 {[%emt 0:00:03]} 50. Rg4 {[%emt 0:00:53]} Kd5 {[%emt 0:00:01]} 51. Rxe4 {[%emt 0:01:01]} Kxe4 {[%emt 0:00:01]} 52. Kg1 {[%emt 0:00:09]} Kf4 {[%emt 0:00:07]} 53. Kf2 {[%emt 0:00:53]} Ke4 {[%emt 0:00:01]} 54. Ke2 {[%emt 0:01:01]} Kf4 {[%emt 0:00:04]} 55. Kf2 {[%emt 0:00:03]} Ke5 {[%emt 0:00:21]} 1/2-1/2

[Event "XXI Torredembarra Open 2019"]
[Site "Torredembarra"]
[Date "2019.07.12"]
[Round "7.3"]
[White "Djuric, Stefan"]
[Black "Guasch Figuerola, Agusti"]
[Result "1-0"]
[ECO "E91"]
[WhiteElo "2368"]
[BlackElo "2071"]
[Annotator "NA"]
[PlyCount "145"]
[EventDate "2019.07.06"]
[EventType "swiss"]
[EventCountry "ESP"]
[SourceTitle "playchess.com"]
[Source "ChessBase"]
[SourceQuality "1"]
[TimeControl "5400+30"]

1. d4 {[%emt 0:00:13]} Nf6 {[%emt 0:00:08]} 2. c4 {[%emt 0:00:08]} c5 {[%emt 0:00:00]} 3. d5 {[%emt 0:10:10]} g6 {[%emt 0:00:17]} 4. Nc3 {[%emt 0:00:16]} d6 {[%emt 0:00:00]} 5. e4 {[%emt 0:00:29]} Bg7 {[%emt 0:01:29]} 6. Nf3 {[%emt 0:01:43]} O-O {[%emt 0:00:00]} 7. Be2 {[%emt 0:00:15]} a6 {[%emt 0:01:00]} 8. O-O {[%emt 0:00:41]} e5 {[%emt 0:06:47]} 9. a3 {[%emt 0:03:36]} Bg4 {[%emt 0:01:09]} 10. Ne1 {[%emt 0:00:56]} Bxe2 {[%emt 0:00:00]} 11. Qxe2 {[%emt 0:01:19]} Nbd7 {[%emt 0:03:28]} 12. Bg5 {[%emt 0:02:06]} h6 {[%emt 0:00:28]} 13. Bd2 {[%emt 0:02:33]} Ne8 {[%emt 0:07:53]} 14. a4 {[%emt 0:04:01]} f5 {[%emt 0:04:36]} 15. f3 {[%emt 0:04:43]} f4 {[%emt 0:01:15]} 16. Nd3 {[%emt 0:03:14]} a5 {[%emt 0:01:56]} 17. g3 {[%emt 0:01:59]} g5 {[%emt 0:04:44]} 18. Nb5 {[%emt 0:23:19]} b6 {[%emt 0:01:32]} 19. Qg2 {[%emt 0:13:54]} Ndf6 {[%emt 0:10:34]} 20. Rae1 {[%emt 0:03:55]} Qd7 {[%emt 0:05:54]} 21. g4 {[%emt 0:02:35]} Nh7 {[%emt 0:16:19]} 22. Kf2 {[%emt 0:03:16]} Bf6 {[%emt 0:03:31]} 23. Ke2 Rf7 {[%emt 0:05:27]} 24. Ra1 {[%emt 0:01:43]} Nf8 {[%emt 0:00:00]} 25. Kd1 Ng6 {[%emt 0:02:32]} 26. Kc2 {[%emt 0:11:19]} Rh7 {[%emt 0:01:13]} 27. Be1 {[%emt 0:00:38]} Qe7 {[%emt 0:08:00]} 28. Ra3 Qd8 {[%emt 0:02:34]} 29. Kb1 {[%emt 0:00:47]} Kh8 {[%emt 0:00:27]} 30. Rb3 {[%emt 0:01:33]} Ra6 {[%emt 0:01:11]} 31. Ka2 {[%emt 0:00:44]} Kg8 {[%emt 0:00:40]} 32. Rg1 {[%emt 0:00:21]} Kh8 {[%emt 0:01:18]} 33. Qc2 {[%emt 0:00:29]} Kg8 {[%emt 0:01:07]} 34. Rc3 {[%emt 0:03:32]} Qd7 {[%emt 0:00:28]} 35. Qd1 {[%emt 0:00:50]} Ra8 {[%emt 0:01:06]} 36. Kb1 {[%emt 0:00:00]} Kh8 {[%emt 0:00:52]} 37. Rc2 {[%emt 0:00:40]} Kg8 {[%emt 0:00:29]} 38. Rcg2 {[%emt 0:00:13]} Kh8 {[%emt 0:00:12]} 39. Qb3 {[%emt 0:00:53]} Kg8 {[%emt 0:02:09]} 40. Nc3 Ra6 {[%emt 0:01:18]} 41. Qb5 {[%emt 0:00:11]} Qxb5 {[%emt 0:00:00]} 42. cxb5 {[%emt 0:00:16]} Ra8 {[%emt 0:00:34]} 43. b3 {[%emt 0:03:21]} Rb8 {[%emt 0:00:43]} 44. Nd1 {[%emt 0:01:16]} Kf7 {[%emt 0:00:10]} 45. N1b2 {[%emt 0:00:38]} Bd8 {[%emt 0:00:05]} 46. Nc4 {[%emt 0:00:06]} Kg8 {[%emt 0:01:01]} 47. Kc2 {[%emt 0:00:03]} Kh8 {[%emt 0:00:23]} 48. Kd1 {[%emt 0:00:10]} Kg8 {[%emt 0:00:31]} 49. Rc2 {[%emt 0:00:21]} Kh8 {[%emt 0:01:23]} 50. Bc3 {[%emt 0:03:03]} Re7 {[%emt 0:00:49]} 51. Ke2 {[%emt 0:00:42]} Kg7 {[%emt 0:00:33]} 52. Rh1 {[%emt 0:00:55]} Kg8 {[%emt 0:00:20]} 53. Kf2 {[%emt 0:01:25]} Kf8 {[%emt 0:00:24]} 54. Ne1 {[%emt 0:00:46]} Rf7 {[%emt 0:00:07]} 55. Ng2 {[%emt 0:00:17]} Bf6 {[%emt 0:00:16]} 56. Rcc1 {[%emt 0:00:51]} Ra7 {[%emt 0:00:10]} 57. Ke2 {[%emt 0:00:36]} Kf7 {[%emt 0:01:09]} 58. h4 {[%emt 0:00:15]} gxh4 {[%emt 0:00:11]} 59. Be1 {[%emt 0:00:12]} Bg5 {[%emt 0:00:50]} 60. Nxh4 {[%emt 0:00:38]} Nxh4 {[%emt 0:00:03]} 61. Bxh4 {[%emt 0:01:14]} Kg6 {[%emt 0:05:20]} 62. Bf2 {[%emt 0:01:04]} Rd7 {[%emt 0:01:31]} 63. Be1 {[%emt 0:00:17]} Nf6 {[%emt 0:00:17]} 64. Bc3 {[%emt 0:00:25]} Nxg4 {[%emt 0:01:36]} 65. fxg4 {[%emt 0:00:03]} f3+ {[%emt 0:00:03]} 66. Kf2 {[%emt 0:00:02]} Bxc1 67. Rxc1 h5 {[%emt 0:00:31]} 68. gxh5+ {[%emt 0:00:09]} Kxh5 {[%emt 0:00:07]} 69. Nxd6 Rxd6 70. Bxe5 {[%emt 0:00:15]} Rdd8 {[%emt 0:00:01]} 71. Bxb8 {[%emt 0:00:08]} Rxb8 {[%emt 0:00:07]} 72. Kxf3 {[%emt 0:00:02]} Kg5 {[%emt 0:00:08]} 73. Rg1+ {[%emt 0:00:05]} 1-0

[Event "XXI Torredembarra Open 2019"]
[Site "Torredembarra"]
[Date "2019.07.12"]
[Round "7.4"]
[White "Fernandez Alonso, Miguel Angel"]
[Black "Gonzalez Rodriguez, Jorge A."]
[Result "0-1"]
[ECO "E73"]
[WhiteElo "2060"]
[BlackElo "2201"]
[Annotator "NA"]
[PlyCount "68"]
[EventDate "2019.07.06"]
[EventType "swiss"]
[EventCountry "ESP"]
[SourceTitle "playchess.com"]
[Source "ChessBase"]
[SourceQuality "1"]
[TimeControl "5400+30"]

1. d4 {[%emt 0:00:00]} Nf6 {[%emt 0:00:37]} 2. c4 {[%emt 0:00:15]} c5 {[%emt 0:00:28]} 3. d5 {[%emt 0:00:12]} e5 {[%emt 0:00:20]} 4. Nc3 {[%emt 0:00:22]} d6 {[%emt 0:00:06]} 5. e4 {[%emt 0:00:20]} g6 {[%emt 0:01:09]} 6. Be2 {[%emt 0:00:05]} Bg7 {[%emt 0:00:00]} 7. h4 {[%emt 0:00:47]} h5 {[%emt 0:00:47]} 8. Bg5 {[%emt 0:00:12]} Nbd7 {[%emt 0:00:33]} 9. f3 {[%emt 0:00:37]} a6 {[%emt 0:00:40]} 10. Nh3 {[%emt 0:01:02]} Nf8 {[%emt 0:00:58]} 11. Nf2 {[%emt 0:00:52]} N8h7 {[%emt 0:00:25]} 12. Be3 {[%emt 0:00:37]} O-O {[%emt 0:00:00]} 13. Qd2 {[%emt 0:00:27]} Bd7 {[%emt 0:02:27]} 14. O-O-O {[%emt 0:00:29]} Kh8 {[%emt 0:00:20]} 15. Kb1 {[%emt 0:03:52]} Qa5 {[%emt 0:00:59]} 16. Rdg1 {[%emt 0:00:37]} b5 {[%emt 0:00:18]} 17. Ncd1 {[%emt 0:01:52]} Qb6 {[%emt 0:01:23]} 18. g4 {[%emt 0:01:08]} bxc4 {[%emt 0:00:44]} 19. Bxc4 {[%emt 0:00:21]} Bb5 {[%emt 0:01:55]} 20. Bb3 {[%emt 0:00:31]} a5 {[%emt 0:00:28]} 21. Bc2 {[%emt 0:01:50]} a4 {[%emt 0:04:14]} 22. Nd3 {[%emt 0:03:17]} Rfb8 {[%emt 0:05:44]} 23. Nc1 {[%emt 0:01:45]} Qa6 {[%emt 0:03:34]} 24. a3 {[%emt 0:00:24]} Rb7 {[%emt 0:01:54]} 25. Rh2 {[%emt 0:07:53]} Rab8 {[%emt 0:03:55]} 26. Bd3 {[%emt 0:01:33]} Bxd3+ {[%emt 0:01:46]} 27. Nxd3 {[%emt 0:00:25]} hxg4 {[%emt 0:00:38]} 28. Nc3 {[%emt 0:00:49]} gxf3 {[%emt 0:14:10]} 29. Qc2 {[%emt 0:02:08]} Rb3 {[%emt 0:01:26]} 30. Ka1 {[%emt 0:10:32]} Qc4 {[%emt 0:00:00]} 31. Bc1 Nxe4 {[%emt 0:02:05]} 32. Nxe4 {[%emt 0:08:32]} Qxe4 {[%emt 0:00:00]} 33. Ne1 Qxd5 {[%emt 0:01:27]} 34. h5 {[%emt 0:00:53]} e4 {[%emt 0:07:40]} 0-1

[Event "XXI Torredembarra Open 2019"]
[Site "Torredembarra"]
[Date "2019.07.12"]
[Round "7.5"]
[White "Soler Lopez, Hugo"]
[Black "Iagar, Razvan-Gabriel"]
[Result "1/2-1/2"]
[ECO "C07"]
[WhiteElo "2072"]
[BlackElo "2138"]
[Annotator "NA"]
[PlyCount "48"]
[EventDate "2019.07.06"]
[EventType "swiss"]
[EventCountry "ESP"]
[SourceTitle "playchess.com"]
[Source "ChessBase"]
[SourceQuality "1"]
[TimeControl "5400+30"]

1. e4 {[%emt 0:00:00]} e6 {[%emt 0:00:00]} 2. d4 {[%emt 0:00:00]} d5 {[%emt 0:00:00]} 3. Nd2 {[%emt 0:00:00]} c5 {[%emt 0:00:00]} 4. exd5 {[%emt 0:00:10]} Qxd5 {[%emt 0:00:00]} 5. Ngf3 {[%emt 0:00:16]} cxd4 {[%emt 0:00:00]} 6. Bc4 {[%emt 0:00:06]} Qd7 {[%emt 0:00:00]} 7. O-O {[%emt 0:00:19]} Nc6 {[%emt 0:00:11]} 8. Nb3 {[%emt 0:00:18]} Nf6 {[%emt 0:00:08]} 9. Nbxd4 {[%emt 0:00:27]} Nxd4 {[%emt 0:00:08]} 10. Nxd4 {[%emt 0:00:06]} a6 {[%emt 0:00:09]} 11. Re1 {[%emt 0:03:21]} Bc5 {[%emt 0:00:40]} 12. Be3 {[%emt 0:13:53]} Qc7 {[%emt 0:10:29]} 13. Qe2 {[%emt 0:04:18]} O-O {[%emt 0:00:48]} 14. c3 {[%emt 0:06:44]} Bd6 {[%emt 0:04:21]} 15. h3 {[%emt 0:15:30]} Bh2+ {[%emt 0:02:28]} 16. Kh1 {[%emt 0:00:44]} Bf4 {[%emt 0:00:03]} 17. Bb3 {[%emt 0:00:43]} Bxe3 {[%emt 0:00:20]} 18. Qxe3 {[%emt 0:00:07]} b6 {[%emt 0:05:47]} 19. Qg5 {[%emt 0:05:00]} h6 {[%emt 0:01:13]} 20. Qh4 {[%emt 0:04:52]} Bb7 {[%emt 0:03:13]} 21. Rad1 {[%emt 0:03:53]} Rfe8 {[%emt 0:08:17]} 22. Rd3 {[%emt 0:03:57]} Kh8 {[%emt 0:02:38]} 23. Rde3 {[%emt 0:08:44]} Rad8 {[%emt 0:07:18]} 24. a3 {[%emt 0:02:44]} Bd5 {[%emt 0:04:15]} 1/2-1/2

[Event "XXI Torredembarra Open 2019"]
[Site "Torredembarra"]
[Date "2019.07.12"]
[Round "7.6"]
[White "Sirera Bargallo, Tomas"]
[Black "Marina De La Torre, Ivan"]
[Result "1/2-1/2"]
[ECO "C00"]
[WhiteElo "2115"]
[BlackElo "2041"]
[Annotator "NA"]
[PlyCount "31"]
[EventDate "2019.07.06"]
[EventType "swiss"]
[EventCountry "ESP"]
[SourceTitle "playchess.com"]
[Source "ChessBase"]
[SourceQuality "1"]
[TimeControl "5400+30"]

1. e4 {[%emt 0:00:00]} e6 {[%emt 0:00:17]} 2. d3 {[%emt 0:00:37]} b5 {[%emt 0:00:21]} 3. Nf3 {[%emt 0:00:13]} Bb7 {[%emt 0:00:48]} 4. g3 {[%emt 0:00:18]} c5 {[%emt 0:00:08]} 5. Bg2 {[%emt 0:00:50]} d6 {[%emt 0:00:19]} 6. c3 {[%emt 0:00:25]} Be7 {[%emt 0:00:43]} 7. Nbd2 {[%emt 0:00:25]} Nf6 {[%emt 0:00:44]} 8. O-O {[%emt 0:00:40]} O-O {[%emt 0:01:44]} 9. Re1 {[%emt 0:00:51]} Qc7 {[%emt 0:01:48]} 10. a4 {[%emt 0:00:54]} a6 {[%emt 0:02:25]} 11. b3 {[%emt 0:00:47]} Nbd7 {[%emt 0:02:27]} 12. Bb2 {[%emt 0:00:25]} Rac8 {[%emt 0:05:08]} 13. Qe2 {[%emt 0:00:22]} Qb6 {[%emt 0:02:53]} 14. a5 {[%emt 0:00:40]} Qc7 {[%emt 0:01:24]} 15. Rec1 {[%emt 0:26:13]} Nb8 {[%emt 0:07:27]} 16. c4 {[%emt 0:01:22]} 1/2-1/2

[Event "XXI Torredembarra Open 2019"]
[Site "Torredembarra"]
[Date "2019.07.12"]
[Round "7.7"]
[White "Saldana Caballe, Enric"]
[Black "Castillo Dalmau, Arnau"]
[Result "1/2-1/2"]
[ECO "B47"]
[WhiteElo "2060"]
[BlackElo "1957"]
[Annotator "NA"]
[PlyCount "67"]
[EventDate "2019.07.06"]
[EventType "swiss"]
[EventCountry "ESP"]
[SourceTitle "playchess.com"]
[Source "ChessBase"]
[SourceQuality "1"]
[TimeControl "5400+30"]

1. e4 {[%emt 0:00:12]} c5 {[%emt 0:00:04]} 2. Nf3 {[%emt 0:00:21]} e6 {[%emt 0:00:36]} 3. Nc3 {[%emt 0:02:18]} a6 {[%emt 0:01:35]} 4. d4 cxd4 5. Nxd4 Qc7 {[%emt 0:02:00]} 6. g3 Nc6 {[%emt 0:02:42]} 7. Bg2 {[%emt 0:01:12]} Nf6 {[%emt 0:01:51]} 8. O-O {[%emt 0:01:31]} Nxd4 {[%emt 0:00:19]} 9. Qxd4 {[%emt 0:00:27]} Bc5 {[%emt 0:04:27]} 10. Qd3 {[%emt 0:04:47]} d6 {[%emt 0:08:45]} 11. Na4 {[%emt 0:09:11]} h6 {[%emt 0:02:37]} 12. Nxc5 {[%emt 0:02:13]} dxc5 {[%emt 0:02:59]} 13. f4 {[%emt 0:03:10]} O-O {[%emt 0:01:53]} 14. c4 {[%emt 0:04:18]} Rd8 {[%emt 0:00:51]} 15. Qe2 {[%emt 0:00:00]} e5 16. fxe5 {[%emt 0:09:23]} Qxe5 {[%emt 0:17:10]} 17. Bf4 Qd4+ {[%emt 0:06:09]} 18. Be3 Bg4 {[%emt 0:09:16]} 19. Bxd4 {[%emt 0:00:25]} Bxe2 {[%emt 0:00:02]} 20. Bxf6 {[%emt 0:00:00]} Bxf1 {[%emt 0:00:00]} 21. Bxd8 {[%emt 0:00:10]} Bxg2 {[%emt 0:00:52]} 22. Bb6 {[%emt 0:00:45]} Bxe4 {[%emt 0:00:00]} 23. Bxc5 Rc8 {[%emt 0:00:58]} 24. b4 {[%emt 0:00:21]} Bd3 {[%emt 0:00:00]} 25. Rc1 {[%emt 0:00:00]} b6 26. Bxb6 Rxc4 {[%emt 0:00:27]} 27. Rxc4 {[%emt 0:00:00]} Bxc4 {[%emt 0:00:00]} 28. a3 Kf8 {[%emt 0:01:44]} 29. Kf2 {[%emt 0:00:54]} Ke7 {[%emt 0:00:00]} 30. Ke3 {[%emt 0:00:48]} Kd7 {[%emt 0:00:00]} 31. Kd4 Bb5 {[%emt 0:00:00]} 32. Kc5 h5 {[%emt 0:00:00]} 33. Ba5 g6 {[%emt 0:00:00]} 34. Kb6 {[%emt 0:00:00] Kc6+} 1/2-1/2

[Event "XXI Torredembarra Open 2019"]
[Site "Torredembarra"]
[Date "2019.07.12"]
[Round "7.8"]
[White "Galimany Rovira, Xavier"]
[Black "Usov, Aleksandr E."]
[Result "1-0"]
[ECO "A11"]
[WhiteElo "2086"]
[BlackElo "1809"]
[Annotator "NA"]
[PlyCount "59"]
[EventDate "2019.07.06"]
[EventType "swiss"]
[EventCountry "ESP"]
[SourceTitle "playchess.com"]
[Source "ChessBase"]
[SourceQuality "1"]
[TimeControl "5400+30"]

1. c4 {[%emt 0:00:00]} c6 {[%emt 0:00:00]} 2. Nf3 {[%emt 0:00:00]} d5 {[%emt 0:00:20]} 3. g3 {[%emt 0:00:18]} dxc4 {[%emt 0:00:00]} 4. Bg2 {[%emt 0:00:53]} Nf6 {[%emt 0:00:26]} 5. O-O {[%emt 0:02:33]} b5 {[%emt 0:04:15]} 6. d3 {[%emt 0:01:40]} cxd3 {[%emt 0:00:00]} 7. Ne5 {[%emt 0:04:05]} Bb7 {[%emt 0:01:47]} 8. Nxd3 {[%emt 0:00:59]} e6 {[%emt 0:03:19]} 9. a4 {[%emt 0:04:03]} a6 {[%emt 0:17:48]} 10. Nd2 {[%emt 0:01:43]} Nbd7 {[%emt 0:05:28]} 11. Qc2 {[%emt 0:01:26]} Nd5 {[%emt 0:03:38]} 12. Nb3 {[%emt 0:03:30]} Bd6 {[%emt 0:07:24]} 13. Nbc5 {[%emt 0:01:40]} Nxc5 {[%emt 0:00:00]} 14. Nxc5 {[%emt 0:03:18]} Qe7 {[%emt 0:03:33]} 15. Nxb7 {[%emt 0:03:15]} Qxb7 {[%emt 0:03:44]} 16. e4 {[%emt 0:00:58]} Nb4 {[%emt 0:03:07]} 17. Qc3 {[%emt 0:02:47]} O-O {[%emt 0:01:43]} 18. Be3 {[%emt 0:12:56]} e5 {[%emt 0:06:34]} 19. Rfd1 {[%emt 0:04:38]} Qe7 {[%emt 0:02:29]} 20. Rxd6 {[%emt 0:02:04]} Qxd6 {[%emt 0:00:00]} 21. Bc5 Qd3 {[%emt 0:08:08]} 22. Bxf8 {[%emt 0:00:30]} Rxf8 {[%emt 0:00:00]} 23. Qxb4 {[%emt 0:00:38]} Rc8 {[%emt 0:00:32]} 24. Qc3 {[%emt 0:00:42]} Qxc3 {[%emt 0:00:00]} 25. bxc3 {[%emt 0:00:25]} c5 {[%emt 0:01:43]} 26. Bf1 {[%emt 0:00:41]} Rb8 {[%emt 0:00:00]} 27. axb5 {[%emt 0:16:25]} axb5 {[%emt 0:00:13]} 28. Bxb5 {[%emt 0:00:32]} Rxb5 {[%emt 0:00:07]} 29. Ra7 {[%emt 0:00:00]} Rb8 {[%emt 0:00:00]} 30. Ra8 {[%emt 0:00:15]} 1-0